bitfinex/quotes_ETHUSD_20251111
["timestamp","ask_amount","ask_price","bid_price","bid_amount"]
[1762820528888,0.01,3578.9,3578.8,3.2497367]
[1762820529205,0.01,3578.9,3578.8,7.86026345]
[1762820529411,0.01,3578.9,3578.8,8.34866345]
[1762820529703,0.1768,3578.9,3578.8,0.5]
[1762820530006,0.1768,3578.9,3577.9,1.748112]
[1762820530007,2.7942327,3578.8,3577.9,0.05]
[1762820530325,0.64122166,3578.8,3578.1,1.259712]
[1762820530512,0.01,3578.9,3578.8,0.5]
[1762820530712,0.01,3578.9,3578.8,8.17645577]
[1762820530914,0.01,3578.9,3578.8,8.48891283]
[1762820531114,0.01,3578.9,3578.8,8.14851345]
[1762820532455,0.01,3578.9,3578.8,7.74163605]
[1762820533624,0.01,3578.9,3578.8,9.40034331]
[1762820533827,0.01,3578.9,3578.8,11.39217269]
[1762820534042,0.01,3578.9,3578.8,17.84614969]
[1762820534630,0.01,3578.9,3578.8,13.15511461]
[1762820534827,0.011,3578.9,3578.8,10.27582106]
[1762820535231,0.011,3578.9,3578.8,9.05134805]
[1762820536119,0.011,3578.9,3578.8,9.45349594]
[1762820536342,0.011,3578.9,3578.8,9.76243478]
[1762820536848,0.011,3578.9,3578.8,9.45349594]
[1762820537039,0.011,3578.9,3578.8,9.76243478]
[1762820537252,0.011,3578.9,3578.8,13.81296394]
[1762820537429,0.011,3578.9,3578.8,14.23992093]
[1762820537919,0.011,3578.9,3578.8,13.93098209]
[1762820538357,0.011,3578.9,3578.8,16.17040409]
[1762820538560,0.011,3578.9,3578.8,15.02885109]
[1762820539262,0.011,3578.9,3578.8,11.42527326]
[1762820539742,0.011,3578.9,3578.8,27.44296626]
[1762820540252,1e-08,3578.9,3578.8,18.40653791]
[1762820540454,1e-08,3578.9,3578.8,25.48595686]
[1762820540646,1e-08,3578.9,3578.8,26.60558091]
[1762820541044,1e-08,3578.9,3578.8,16.99178591]
[1762820541227,1e-08,3578.9,3578.8,15.32547207]
[1762820541429,1e-08,3578.9,3578.8,13.82124607]
[1762820541871,0.27240001,3578.9,3578.8,5.85962686]
[1762820542070,1e-08,3578.9,3578.8,3.3442327]
[1762820542442,1e-08,3578.9,3578.8,0.955504]
[1762820542641,1e-08,3578.9,3578.8,0.55]
[1762820543168,1e-08,3578.9,3578.8,4.6039447]
[1762820543475,0.27240001,3578.9,3578.8,1.759712]
[1762820543657,0.46000001,3578.9,3578.8,1.759712]
[1762820543981,0.92060001,3578.9,3578.8,0.5]
[1762820544273,1e-08,3578.9,3578.8,8.4739736]
[1762820544479,1e-08,3578.9,3578.8,10.62568496]
[1762820544631,1e-08,3578.9,3578.8,11.36894679]
[1762820544828,1e-08,3578.9,3578.8,16.41030779]
[1762820545645,1e-08,3578.9,3578.8,16.09400295]
[1762820545856,1e-08,3578.9,3578.8,15.75519495]
[1762820546173,1e-08,3578.9,3578.8,17.06490695]
[1762820546371,1e-08,3578.9,3578.8,22.96129996]
[1762820546572,1e-08,3578.9,3578.8,16.59355879]
[1762820548889,1e-08,3578.9,3578.8,16.27725395]
[1762820549091,1e-08,3578.9,3578.8,16.59355879]
[1762820549260,1e-08,3578.9,3578.8,16.27725395]
[1762820551059,1e-08,3578.9,3578.8,16.59355879]
[1762820552579,1e-08,3578.9,3578.8,16.27725395]
[1762820553094,1e-08,3578.9,3578.8,16.27925395]
[1762820553410,0.47650001,3578.9,3578.8,4.6059447]
[1762820553562,0.92830001,3578.9,3578.8,4.6059447]
[1762820553898,0.92830001,3578.9,3578.8,3.7017367]
[1762820554097,0.92830001,3578.9,3578.8,0.502]
[1762820556004,0.92830001,3578.9,3578.8,3.2962327]
[1762820556386,0.92830001,3578.9,3578.8,3.67244429]
[1762820556580,0.66980001,3578.9,3578.8,0.87821159]
[1762820556804,0.92830001,3578.9,3578.8,0.87821159]
[1762820556982,0.92830001,3578.9,3578.8,3.67244429]
[1762820557186,0.92830001,3578.9,3578.8,4.07794829]
[1762820557594,0.92830001,3578.9,3578.8,3.7017367]
[1762820557780,0.92830001,3578.9,3578.8,0.907504]
[1762820557981,0.92830001,3578.9,3578.8,0.502]
[1762820558617,1.30052369,3578.9,3578.8,0.502]
[1762820558773,0.92830001,3578.9,3578.8,0.002]
[1762820559088,0.92830001,3578.9,3578.8,0.502]
[1762820559287,0.92830001,3578.9,3578.8,0.002]
[1762820559610,3.72245463,3578.9,3578.8,0.502]
[1762820559915,4.37410001,3578.9,3578.8,0.502]
[1762820560384,4.37410001,3578.9,3578.8,0.002]
[1762820560588,2.79446695,3578.5,3578.4,0.502]
[1762820560792,3.03616695,3578.5,3578.4,0.502]
[1762820560972,4.1595664,3578.5,3578.4,0.502]
[1762820561171,1.36509945,3578.5,3578.4,0.502]
[1762820561578,0.7327,3578.5,3578.4,0.502]
[1762820562537,3.52716695,3578.5,3578.4,0.002]
[1762820568813,3.52716695,3578.5,3578.4,0.001]
[1762820571504,4.78687895,3578.5,3578.4,0.001]
[1762820571704,4.81501086,3578.5,3578.4,0.001]
[1762820571926,5.57594342,3578.5,3578.4,0.001]
[1762820572122,5.54781151,3578.5,3578.4,0.001]
[1762820573434,4.28809951,3578.5,3578.4,0.001]
[1762820574549,5.57594342,3578.5,3578.4,0.001]
[1762820574749,5.54781151,3578.5,3578.4,0.001]
[1762820580557,9.02288877,3578.5,3578.4,0.001]
[1762820580720,12.56481707,3578.5,3578.4,0.001]
[1762820580915,13.33871504,3578.5,3578.4,0.001]
[1762820581251,12.73878674,3578.5,3578.4,0.001]
[1762820581451,13.33888027,3578.5,3578.4,0.001]
[1762820582438,12.67688027,3578.5,3578.4,0.001]
[1762820582638,9.32937627,3578.5,3578.4,0.001]
[1762820584467,9.73488027,3578.5,3578.4,0.001]
[1762820584640,9.32937627,3578.5,3578.4,0.001]
[1762820586175,2.79509181,3577.7,3577.6,0.002]
[1762820586471,3.51740099,3577.7,3577.6,0.002]
[1762820586681,4.0205329,3577.7,3577.6,0.002]
[1762820587779,8.72719025,3577.7,3577.6,0.002]
[1762820588012,11.66919025,3577.7,3577.6,0.002]
[1762820588193,12.93235866,3577.7,3577.6,0.002]
[1762820589166,8.92285466,3577.7,3577.6,0.002]
[1762820589486,5.1906814,3577.7,3577.6,0.002]
[1762820589635,4.58951299,3577.7,3577.6,0.002]
[1762820590067,5.06201299,3577.7,3577.6,0.002]
[1762820590770,4.58951299,3577.7,3577.6,0.002]
[1762820591569,5.06201299,3577.7,3577.6,0.002]
[1762820592269,5.0901449,3577.7,3577.6,0.002]
[1762820592849,4.58951299,3577.7,3577.6,0.002]
[1762820593051,4.59171299,3577.7,3577.6,0.002]
[1762820594573,5.06201299,3577.7,3577.6,0.002]
[1762820595659,4.59171299,3577.7,3577.6,0.002]
[1762820595885,5.06201299,3577.7,3577.6,0.002]
[1762820596614,5.0901449,3577.7,3577.6,0.002]
[1762820596961,5.69187663,3577.7,3577.6,0.002]
[1762820597301,5.66374472,3577.7,3577.6,0.002]
[1762820597468,6.73124872,3577.7,3577.6,0.002]
[1762820597815,9.67324872,3577.7,3577.6,0.002]
[1762820598013,10.42313022,3577.7,3577.6,0.002]
[1762820598220,9.01124872,3577.7,3577.6,0.002]
[1762820598513,9.67324872,3577.7,3577.6,0.002]
[1762820598722,5.66374472,3577.7,3577.6,0.002]
[1762820602470,5.77565145,3577.7,3577.6,0.002]
[1762820604110,9.87303695,3577.7,3577.6,0.002]
[1762820604486,9.87303695,3577.7,3576.5,0.002]
[1762820604688,4.3080508,3577.0,3576.5,0.002]
[1762820605407,4.7630508,3577.0,3576.5,0.002]
[1762820606492,2.79595146,3576.6,3576.5,0.002]
[1762820606715,4.78919537,3576.6,3576.5,0.002]
[1762820606916,5.82727225,3576.6,3576.5,0.002]
[1762820607220,9.93363928,3576.6,3576.5,0.002]
[1762820607619,6.99163928,3576.6,3576.5,0.002]
[1762820607920,9.93363928,3576.6,3576.5,0.002]
[1762820609445,2.79626419,3576.2,3576.1,1e-08]
[1762820609594,4.80852717,3576.2,3576.1,1e-08]
[1762820609792,5.26352717,3576.2,3576.1,1e-08]
[1762820609994,5.73712717,3576.2,3576.1,1e-08]
[1762820610496,5.28212717,3576.2,3576.1,1e-08]
[1762820610896,5.73712717,3576.2,3576.1,1e-08]
[1762820619111,9.68550231,3576.2,3576.1,1e-08]
[1762820622916,9.68519765,3576.2,3576.1,1e-08]
[1762820623750,9.68619765,3576.2,3576.1,1e-08]
[1762820625043,4.05675831,3575.2,3575.1,0.01]
[1762820625223,7.40366348,3575.2,3575.1,0.01]
[1762820625420,7.37553157,3575.2,3575.1,0.01]
[1762820625749,7.84913157,3575.2,3575.1,0.01]
[1762820626440,7.84913157,3575.2,3575.1,1e-08]
[1762820626646,9.61893023,3575.2,3575.1,1e-08]
[1762820626822,9.26343023,3575.2,3575.1,1e-08]
[1762820630061,12.20543023,3575.2,3575.1,1e-08]
[1762820630637,5.94465697,3575.2,3575.1,0.47290001]
[1762820630849,5.94465697,3575.2,3575.1,1.13130001]
[1762820631357,5.94465697,3575.2,3575.1,0.65770001]
[1762820631659,5.94465697,3575.2,3575.1,0.47290001]
[1762820634951,8.46320166,3575.2,3575.1,0.47290001]
[1762820636336,9.06553227,3575.2,3575.1,0.47290001]
[1762820638461,9.06562651,3575.2,3575.1,0.47290001]
[1762820641378,9.06562651,3575.2,3575.1,0.47490001]
[1762820641844,9.06662651,3575.2,3575.1,0.96220001]
[1762820642187,7.65232785,3575.2,3575.1,0.96220001]
[1762820642370,3.27164631,3575.2,3575.1,0.96220001]
[1762820642790,5.790191,3575.2,3575.1,0.96220001]
[1762820643158,5.790191,3575.2,3575.1,0.47490001]
[1762820644602,6.393139,3575.2,3575.1,0.47490001]
[1762820644755,6.393139,3575.2,3575.1,0.96220001]
[1762820644954,5.790191,3575.2,3575.1,0.47490001]
[1762820645305,7.39929129,3575.2,3575.1,0.00200001]
[1762820645657,7.25189129,3575.2,3575.1,0.00200001]
[1762820646355,8.51160329,3575.2,3575.1,0.00200001]
[1762820646556,8.51160329,3575.2,3575.1,0.49770001]
[1762820646868,9.11540329,3575.2,3575.1,0.00200001]
[1762820648308,8.65900329,3575.2,3575.1,0.00200001]
[1762820650719,9.11540329,3575.2,3575.1,0.00200001]
[1762820651213,8.65900329,3575.2,3575.1,0.00200001]
[1762820652046,8.51160329,3575.2,3575.1,0.68150001]
[1762820652232,5.134344,3575.2,3575.1,1.16880001]
[1762820652393,4.660744,3575.2,3575.1,1.16880001]
[1762820652717,3.401032,3575.2,3575.1,1.16880001]
[1762820656031,2.79804631,3575.2,3575.1,1.16880001]
[1762820662846,0.001,3575.2,3575.1,1.16880001]
[1762820663141,2.79804631,3575.2,3575.1,1.16880001]
[1762820664053,0.001,3575.2,3575.1,1.16880001]
[1762820664253,0.001,3575.2,3575.1,1.66880001]
[1762820664452,0.001,3575.2,3575.1,2.1082603]
[1762820664752,5.603391,3575.2,3575.1,0.00200001]
[1762820664949,10.02341145,3575.2,3575.1,0.00200001]
[1762820665253,9.6044432,3575.2,3575.1,0.00200001]
[1762820665644,12.12298789,3575.2,3575.1,0.00200001]
[1762820666453,9.6044432,3575.2,3575.1,0.00200001]
[1762820666649,8.8598432,3575.2,3575.1,0.47770001]
[1762820666951,4.24155821,3575.2,3575.1,1.13230001]
[1762820667156,2.79804631,3575.2,3575.1,1.13230001]
[1762820667552,0.001,3575.2,3575.1,1.13230001]
[1762820668055,2.79804631,3575.2,3575.1,1.13230001]
[1762820668454,0.001,3575.2,3575.1,1.13230001]
[1762820668628,0.001,3575.2,3575.1,2.19696299]
[1762820669042,0.001,3575.2,3575.1,1.78656937]
[1762820669219,0.001,3575.2,3575.1,1.63230001]
[1762820669749,0.001,3575.2,3575.1,1.13230001]
[1762820674438,0.001,3575.2,3575.1,1.63230001]
[1762820674641,0.001,3575.2,3575.1,2.04269363]
[1762820674840,0.001,3575.2,3575.1,1.63230001]
[1762820677243,0.001,3575.2,3575.1,2.48564917]
[1762820677643,0.001,3575.2,3575.1,2.04269363]
[1762820677844,0.001,3575.2,3575.1,1.63230001]
[1762820679792,0.001,3575.2,3575.1,2.04269363]
[1762820680670,0.001,3575.2,3575.1,1.63230001]
[1762820682055,0.001,3575.2,3575.1,2.04269363]
[1762820682389,2.79804631,3575.2,3575.1,0.00200001]
[1762820683291,3.96886031,3575.2,3575.1,0.00200001]
[1762820683495,7.44533691,3575.2,3575.1,0.00200001]
[1762820683809,9.28009106,3575.2,3575.1,0.00200001]
[1762820688519,8.81119106,3575.2,3575.1,0.00200001]
[1762820688682,4.51865831,3575.2,3575.1,0.93660001]
[1762820689475,3.25894631,3575.2,3575.1,1.13230001]
[1762820690901,5.777491,3575.2,3575.1,0.47770001]
[1762820691085,6.63493559,3575.2,3575.1,0.00200001]
[1762820692294,6.63493559,3575.2,3575.1,0.47770001]
[1762820692701,6.91043559,3575.2,3575.1,0.00200001]
[1762820692914,4.1163909,3575.2,3575.1,0.00200001]
[1762820693508,4.1163909,3575.2,3575.1,0.67340001]
[1762820693704,3.25894631,3575.2,3575.1,1.13230001]
[1762820694332,3.25894631,3575.2,3575.1,0.47770001]
[1762820694843,6.43133571,3575.2,3575.1,0.00200001]
[1762820695046,7.35416477,3575.2,3575.1,0.00200001]
[1762820695355,9.21662113,3575.2,3575.1,0.00200001]
[1762820697426,8.74772113,3575.2,3575.1,0.00200001]
[1762820698536,8.47222113,3575.2,3575.1,0.00200001]
[1762820699263,7.86947677,3575.2,3575.1,0.00200001]
[1762820699422,8.7229881,3575.2,3575.1,0.00200001]
[1762820700250,8.12037677,3575.2,3575.1,0.00200001]
[1762820700972,8.12037677,3575.2,3575.1,1.12360001]
[1762820700973,3.25894631,3575.2,3575.1,1.12360001]
[1762820702359,2.79804631,3575.2,3575.1,1.12360001]
[1762820702830,0.001,3575.2,3575.1,1.12360001]
[1762820703238,2.79804631,3575.2,3575.1,1.12360001]
[1762820703918,2.79804631,3575.2,3575.1,0.45300001]
[1762820704262,4.34454089,3575.2,3575.1,0.00200001]
[1762820704438,3.85124089,3575.2,3575.1,0.00200001]
[1762820704962,3.60034089,3575.2,3575.1,0.00200001]
[1762820705145,4.08714089,3575.2,3575.1,0.00200001]
[1762820705546,4.34044089,3575.2,3575.1,0.00200001]
[1762820706050,4.08714089,3575.2,3575.1,0.45300001]
[1762820706368,3.28484631,3575.2,3575.1,0.45300001]
[1762820706737,3.28484631,3575.2,3575.1,0.00200001]
[1762820706927,3.28484631,3575.2,3575.1,0.45300001]
[1762820707128,3.28484631,3575.2,3575.1,0.00200001]
[1762820707323,3.31297822,3575.2,3575.1,0.00200001]
[1762820707631,3.56387822,3575.2,3575.1,0.00200001]
[1762820707825,3.53574631,3575.2,3575.1,0.00200001]
[1762820708327,7.61279574,3575.2,3575.1,0.00200001]
[1762820708947,7.11949574,3575.2,3575.1,0.00200001]
[1762820709367,3.28484631,3575.2,3575.1,1.12360001]
[1762820711271,3.28484631,3575.2,3575.1,0.63680001]
[1762820711434,3.28484631,3575.2,3575.1,0.45300001]
[1762820717290,3.53574631,3575.2,3575.1,0.00200001]
[1762820717688,4.02904631,3575.2,3575.1,0.00200001]
[1762820717893,5.23413644,3575.2,3575.1,0.00200001]
[1762820718492,4.74083644,3575.2,3575.1,0.00200001]
[1762820719495,7.09755665,3575.2,3575.1,0.00200001]
[1762820722163,7.8508827,3575.2,3575.1,0.00200001]
[1762820722361,8.09710251,3575.2,3575.1,0.00200001]
[1762820722994,7.09755665,3575.2,3575.1,0.00200001]
[1762820724789,8.09710251,3575.2,3575.1,0.00200001]
[1762820725336,4.25597129,3574.8,3574.7,1e-08]
[1762820725616,8.24070081,3574.8,3574.7,1e-08]
[1762820725797,8.6672689,3574.8,3574.7,1e-08]
[1762820725992,8.77927998,3574.8,3574.7,1e-08]
[1762820726585,8.77843717,3574.8,3574.7,1e-08]
[1762820726785,10.74497825,3574.8,3574.7,1e-08]
[1762820733907,11.15048225,3574.8,3574.7,1e-08]
[1762820734338,14.09248225,3574.8,3574.7,1e-08]
[1762820734492,6.48553028,3574.2,3574.1,0.01]
[1762820734692,6.75243028,3574.2,3574.1,0.01]
[1762820734889,8.22794701,3574.2,3574.1,0.01]
[1762820735091,8.33997441,3574.2,3574.1,0.01]
[1762820735349,8.33997441,3574.2,3573.7,1e-08]
[1762820735350,4.73025803,3573.8,3573.7,1e-08]
[1762820735626,11.38842239,3573.8,3573.7,1e-08]
[1762820735930,14.14726155,3573.8,3573.7,1e-08]
[1762820736114,14.25931374,3573.8,3573.7,1e-08]
[1762820736315,13.50664498,3573.8,3573.7,1e-08]
[1762820738956,5.22714965,3572.5,3572.4,0.1862]
[1762820739107,6.02977122,3572.5,3572.2,0.4882]
[1762820739308,2.79939533,3572.2,3572.1,0.01]
[1762820739514,5.38351664,3572.2,3572.1,0.01]
[1762820740144,5.35538473,3572.2,3572.1,0.01]
[1762820740921,6.61509673,3572.2,3572.1,0.01]
[1762820741130,7.73375561,3572.2,3572.1,0.01]
[1762820741341,8.59255961,3572.2,3572.1,1e-08]
[1762820742157,8.13925961,3572.2,3572.1,1e-08]
[1762820742651,8.59255961,3572.2,3572.1,1e-08]
[1762820743816,8.13925961,3572.2,3572.1,1e-08]
[1762820744460,8.59255961,3572.2,3572.1,1e-08]
[1762820746055,8.7046567,3572.2,3572.1,1e-08]
[1762820746566,2.7998656,3571.6,3571.5,0.002]
[1762820746719,7.145567,3571.6,3571.5,0.002]
[1762820746924,7.726867,3571.6,3571.5,0.002]
[1762820747124,7.83898892,3571.6,3571.5,0.002]
[1762820748048,7.38568892,3571.6,3571.5,0.002]
[1762820748248,8.96330489,3571.6,3571.5,0.002]
[1762820750662,3.20568321,3571.2,3571.0,0.002]
[1762820750982,6.64409093,3571.1,3571.0,0.002]
[1762820751149,7.02146302,3571.1,3571.0,0.002]
[1762820751346,9.02948582,3571.1,3571.0,0.002]
[1762820752231,4.46578731,3570.7,3570.2,0.002]
[1762820752454,7.70790862,3570.7,3570.2,0.002]
[1762820752623,8.13307671,3570.7,3570.2,0.002]
[1762820752832,8.13307671,3570.7,3569.6,0.6764]
[1762820752833,2.80096353,3570.2,3569.6,0.6764]
[1762820753133,5.32767221,3569.8,3569.6,0.002]
[1762820753351,5.48380412,3569.8,3569.6,0.002]
[1762820753748,6.74351612,3569.8,3569.6,0.002]
[1762820754078,6.69954228,3569.8,3569.7,0.48710001]
[1762820754944,7.90224804,3569.8,3569.7,0.48710001]
[1762820755680,8.03024804,3569.8,3569.7,1e-08]
[1762820756255,8.02184804,3569.8,3569.7,1e-08]
[1762820756685,11.41534687,3569.8,3569.7,1e-08]
[1762820757879,5.90095721,3569.8,3569.7,1e-08]
[1762820758078,8.42735204,3569.8,3569.7,1e-08]
[1762820758594,8.88895204,3569.8,3569.7,1e-08]
[1762820758946,8.42735204,3569.8,3569.7,1e-08]
[1762820759542,8.30775204,3569.8,3569.7,1e-08]
[1762820759747,8.78345204,3569.8,3569.7,1e-08]
[1762820761780,2.80174829,3569.2,3569.1,0.01]
[1762820761990,2.80253349,3568.2,3567.8,0.1828]
[1762820762161,5.32892832,3568.2,3567.8,0.1828]
[1762820762350,5.51512832,3568.2,3568.1,0.4927]
[1762820762680,5.51512832,3568.2,3568.1,0.9595]
[1762820762879,2.98873349,3568.2,3568.1,0.9595]
[1762820763180,2.98873349,3568.2,3568.1,0.4927]
[1762820764282,5.13745792,3568.2,3568.1,0.01]
[1762820764482,6.04679383,3568.2,3568.1,0.01]
[1762820764685,6.01866192,3568.2,3568.1,0.01]
[1762820766058,5.54296192,3568.2,3568.1,0.01]
[1762820766384,5.54296192,3568.2,3568.1,0.4927]
[1762820767896,5.54296192,3568.2,3567.5,0.199]
[1762820767897,2.80300482,3567.6,3567.0,0.4668]
[1762820768078,7.25168263,3567.2,3566.5,0.199]
[1762820768251,7.65718663,3567.2,3566.5,0.199]
[1762820768452,2.80379072,3566.6,3566.5,0.199]
[1762820768673,4.06373858,3566.3,3566.2,0.199]
[1762820768873,4.06373858,3566.3,3566.2,0.6817]
[1762820769265,4.74543858,3566.3,3566.2,0.6817]
[1762820769591,4.74543858,3566.3,3566.2,1.1485]
[1762820769795,4.74543858,3566.3,3566.2,0.6817]
[1762820770120,5.53122656,3566.3,3566.2,0.6817]
[1762820770281,5.53122656,3566.3,3566.2,1.1485]
[1762820771218,4.74543858,3566.3,3566.2,1.1485]
[1762820771414,4.74543858,3566.3,3566.2,0.6817]
[1762820771733,4.46932121,3566.2,3566.1,1e-08]
[1762820771866,4.94502121,3566.2,3566.1,1e-08]
[1762820772066,4.94502121,3566.2,3566.1,0.48270001]
[1762820772067,4.72181721,3566.2,3566.1,0.48270001]
[1762820772351,5.47485976,3566.2,3566.1,1.14850001]
[1762820772512,0.6817,3566.3,3566.1,1.14850001]
[1762820772794,2.80410521,3566.2,3566.1,0.19900001]
[1762820772989,4.74546192,3566.3,3566.2,0.4827]
[1762820773168,4.74546192,3566.3,3566.2,0.9495]
[1762820773786,1.941412,3566.3,3566.2,0.9495]
[1762820773986,4.74543858,3566.3,3566.2,0.9495]
[1762820774514,5.24802035,3566.3,3566.2,0.9495]
[1762820774714,5.24802035,3566.3,3566.1,1e-08]
[1762820774715,4.06381721,3566.2,3566.1,1e-08]
[1762820774891,2.80489173,3565.2,3565.1,0.01]
[1762820775087,3.36586045,3565.2,3565.1,0.01]
[1762820775309,3.36586045,3565.2,3565.1,0.4927]
[1762820775515,3.56486045,3565.2,3565.1,0.4927]
[1762820775715,3.00389173,3565.2,3565.1,0.9595]
[1762820776021,0.199,3565.2,3565.1,0.9595]
[1762820776522,3.00389173,3565.2,3565.1,0.9595]
[1762820778921,3.00389173,3565.2,3565.1,0.4927]
[1762820779225,4.02062621,3565.2,3565.1,0.4927]
[1762820779427,4.02062621,3565.2,3565.1,0.01]
[1762820779627,4.04875812,3565.2,3565.1,0.01]
[1762820779788,4.02062621,3565.2,3565.1,0.01]
[1762820780338,6.46117412,3565.2,3565.1,1e-08]
[1762820780540,6.92284221,3565.2,3565.1,1e-08]
[1762820781733,2.80567869,3564.2,3564.1,0.01]
[1762820781891,7.44491007,3564.2,3564.1,1e-08]
[1762820782091,7.53411007,3564.2,3564.1,1e-08]
[1762820782386,8.60541407,3564.2,3564.1,1e-08]
[1762820783300,8.51621407,3564.2,3564.1,1e-08]
[1762820783502,8.11071007,3564.2,3564.1,0.68170001]
[1762820783727,8.11071007,3564.2,3564.1,1.14850001]
[1762820783728,4.73119069,3564.2,3564.1,1.14850001]
[1762820785008,4.73119069,3564.2,3564.1,0.68170001]
[1762820785208,4.73119069,3564.2,3564.1,0.48270001]
[1762820785728,7.8301422,3564.2,3564.1,1e-08]
[1762820786020,8.89652202,3564.2,3564.1,1e-08]
[1762820787627,8.89652202,3564.2,3564.1,0.65410001]
[1762820787628,5.79757051,3564.2,3564.1,0.65410001]
[1762820787848,5.79757051,3564.2,3564.1,1.14570001]
[1762820789347,4.73119069,3564.2,3564.1,1.14570001]
[1762820789549,2.80479013,3565.4,3564.1,1.14570001]
[1762820789740,2.80536022,3564.7,3564.2,0.4916]
[1762820789938,2.80539646,3564.6,3564.2,0.4916]
[1762820790155,2.80550928,3564.5,3564.2,0.4916]
[1762820790329,0.84225539,3564.7,3564.2,0.4916]
[1762820790851,2.80530254,3564.7,3564.6,0.4672]
[1762820791335,2.80530254,3564.7,3564.6,0.9588]
[1762820793221,2.34157419,3567.1,3564.6,1.4588]
[1762820793222,5.90305672,3566.2,3564.6,1.4588]
[1762820793532,2.80460981,3565.6,3565.0,0.5]
[1762820793843,1.259712,3565.9,3565.2,0.5]
[1762820794158,4.06428906,3565.6,3565.5,0.4672]
[1762820794319,2.80481305,3565.3,3565.2,0.9916]
[1762820794521,2.80489173,3565.2,3565.1,0.1869]
[1762820795017,0.28500957,3565.8,3565.1,1.1457]
[1762820795216,0.28500957,3565.8,3565.1,0.1869]
[1762820795416,2.80489173,3565.2,3565.1,0.1869]
[1762820795617,2.804771,3565.4,3565.1,0.1869]
[1762820795837,0.28500957,3565.8,3565.2,0.4916]
[1762820796081,1.54472157,3565.8,3565.7,0.4657]
[1762820796222,3.08942933,3565.8,3565.7,0.4657]
[1762820796538,0.33067169,3566.1,3565.7,0.9363]
[1762820796742,2.80379072,3566.6,3565.7,0.4706]
[1762820797050,4.06389584,3566.1,3566.0,0.4657]
[1762820797554,4.06389584,3566.1,3566.0,0.9363]
[1762820798553,1.330612,3566.9,3566.0,0.9657]
[1762820798793,1.330612,3566.9,3566.0,0.4657]
[1762820798794,1.259712,3566.5,3566.0,0.4657]
[1762820798950,1.259712,3566.5,3565.1,0.1869]
[1762820798951,2.80441109,3565.9,3565.6,0.4706]
[1762820799153,2.80449841,3565.7,3565.6,0.4706]
[1762820799385,2.80449841,3565.7,3565.6,0.4657]
[1762820799590,3.3653907,3565.7,3565.2,0.4706]
[1762820799749,2.80481305,3565.3,3565.2,0.4706]
[1762820800173,2.80481305,3565.3,3565.2,0.9363]
[1762820800751,2.80459451,3565.6,3565.2,0.9363]
[1762820800951,2.80457706,3565.6,3565.5,0.4657]
[1762820801156,3.73146841,3565.6,3565.5,0.4657]
[1762820801577,2.80457706,3565.6,3565.5,0.4657]
[1762820801953,2.80473439,3565.4,3565.1,0.1869]
[1762820802153,2.80489173,3565.2,3565.1,0.6575]
[1762820802678,2.80489173,3565.2,3565.1,1.1232]
[1762820802883,0.56088421,3565.7,3565.1,1.1232]
[1762820803072,0.38461357,3565.6,3565.3,0.4657]
[1762820803259,2.80473439,3565.4,3565.3,0.9363]
[1762820803999,0.77183191,3565.4,3564.4,0.4706]
[1762820804163,2.80489173,3565.2,3564.4,0.9706]
[1762820804498,2.80542165,3564.6,3564.4,0.4706]
[1762820804699,2.80542165,3564.6,3564.5,0.4706]
[1762820804862,2.80542165,3564.6,3564.5,0.9363]
[1762820805390,2.80530837,3564.7,3564.5,0.9363]
[1762820805591,2.80530837,3564.7,3564.5,0.4706]
[1762820805891,2.80530837,3564.7,3564.6,0.9363]
[1762820806983,2.80530837,3564.7,3564.6,0.4657]
[1762820808971,2.80523559,3564.8,3564.6,0.4657]
[1762820809301,2.80528515,3564.7,3564.6,0.4657]
[1762820809504,2.80536621,3564.6,3564.1,0.18890001]
[1762820809801,2.80530086,3564.7,3564.3,0.5]
[1762820810409,2.80530086,3564.7,3564.6,0.4657]
[1762820810616,2.80530086,3564.7,3564.6,0.9363]
[1762820811697,3.39733324,3564.7,3564.6,0.4657]
[1762820811863,3.39733324,3564.7,3564.1,0.18890001]
[1762820811864,2.80567869,3564.2,3564.1,0.18890001]
[1762820812058,2.80567869,3564.2,3564.1,0.00200001]
[1762820812259,3.82090207,3564.2,3564.1,0.00200001]
[1762820816721,4.11170207,3564.2,3564.1,0.00200001]
[1762820816885,3.82090207,3564.2,3564.1,0.00200001]
[1762820818433,3.36680207,3564.2,3564.1,0.00200001]
[1762820818782,0.59303238,3564.7,3564.1,1.14920001]
[1762820819120,0.001,3564.7,3564.2,0.4603]
[1762820819292,1.259712,3564.5,3564.2,0.4603]
[1762820819817,1.259712,3564.5,3564.4,0.4949]
[1762820819999,1.259712,3564.6,3564.4,0.9552]
[1762820820182,2.80537869,3564.6,3564.4,0.4603]
[1762820820381,0.001,3564.7,3564.1,0.19400001]
[1762820820382,2.80544255,3564.5,3564.1,1.15430001]
[1762820820692,0.001,3564.7,3564.1,1.15430001]
[1762820820896,2.80628515,3564.7,3564.6,0.4949]
[1762820821213,0.001,3564.7,3564.6,0.4949]
[1762820821418,0.001,3564.7,3564.6,0.9552]
[1762820822227,0.001,3564.7,3564.6,1.4552]
[1762820823039,0.001,3564.7,3564.6,1.82869226]
[1762820823731,0.001,3564.7,3564.6,4.63405611]
[1762820823913,0.001,3564.7,3564.6,5.37802199]
[1762820824319,0.001,3564.7,3564.6,2.57265814]
[1762820824532,0.001,3564.7,3564.6,1.4552]
[1762820824843,0.001,3564.7,3564.6,0.4949]
[1762820824844,2.80628515,3564.7,3564.6,0.4949]
[1762820825027,2.80559664,3564.4,3564.1,0.19400001]
[1762820825226,2.80628515,3564.7,3564.6,0.4949]
[1762820825416,3.36742734,3564.7,3564.6,0.4949]
[1762820825800,2.80559997,3564.3,3564.2,0.4603]
[1762820826006,2.80559997,3564.3,3564.1,0.00200001]
[1762820826007,2.80567869,3564.2,3564.1,0.00200001]
[1762820827415,2.80567869,3564.2,3564.1,0.49690001]
[1762820828616,2.80567869,3564.2,3564.1,0.00200001]
[1762820828825,3.36679901,3564.2,3564.1,0.00200001]
[1762820830146,3.61269901,3564.2,3564.1,0.00200001]
[1762820830552,3.36679901,3564.2,3564.1,0.49690001]
[1762820830724,3.36679901,3564.2,3564.1,0.95720001]